Cogmind - Beta 14 @@@ ROGUE MODE // 2024.12.04 @ 01:55:11 Player: agdragon Result: Destroyed by L-31 Rogue with Katana Performance ------------- Evolutions (1) 500 Regions Visited (2) 400 Robots Destroyed (24) 120 Value Destroyed (486) 486 Prototype IDs (0) 0 Alien Tech Used (0) 0 Bonus (0) 0 TOTAL SCORE: 1506 Bonus ------- None Cogmind --------- Core Integrity 0/400 Matter 220/300 Energy 100/100 System Corruption 0% Temperature Cool (9) Movement Core (1350) Ox26 Location -9/Materials Parts ------- > --- POWER (1) -------- (None) > --- PROPULSION (2) --- (None) > --- UTILITY (4) ------ Huge Storage Unit > --- WEAPON (2) ------- (None) > --- INVENTORY (25) --- Faulty Improved VTOL Module Improved VTOL Module Disposable Heat Sink Small Matter Pod (50) Medium Matter Pod (100) Improved Targeting Computer Medium Armor Plating Medium Armor Plating Medium Armor Plating Autogun Heavy Mace Heavy Mace Peak State ------------ > --- POWER ------------ Light Nuclear Core > --- PROPULSION ------- Armored Wheel Armored Wheel > --- UTILITY ---------- Huge Storage Unit Advanced Targeting Computer Advanced Targeting Computer Medium Armor Plating > --- WEAPON ----------- Improved Light Cannon Improved Light Cannon > --- INVENTORY -------- Ion Engine Improved VTOL Module Improved VTOL Module Disposable Heat Sink Small Matter Pod Medium Matter Pod Improved Targeting Computer Medium Armor Plating Medium Armor Plating Medium Armor Plating Autogun Grenade Launcher Heavy Mace Heavy Mace [Rating: 23] Favorites ----------- Power Ion Engine Engine Ion Engine Power Core Light Nuclear Core Propulsion Armored Wheel Leg Aluminum Leg Wheel Armored Wheel Utility Salvage Targeting Computer Storage Huge Storage Unit Processor Salvage Targeting Computer Protection Medium Armor Plating Weapon Improved Light Cannon Energy Gun Small Laser Ballistic Gun Autogun Ballistic Cannon Improved Light Cannon Launcher Grenade Launcher Build | -11 -10 -9 ------- Run | Yrd Mat Mat Slots Evolved 2 | . . 2 Power . | . . . Propulsion . | . . . Utility 2 | . . 2 Weapon . | . . . Parts Attached 27 | 10 12 5 Power 4 | 2 1 1 Engine 3 | 2 . 1 Core 1 | . 1 . Reactor . | . . . Propulsion 8 | 6 2 . Treads . | . . . Leg 2 | 2 . . Wheel 6 | 4 2 . Hover . | . . . Flight . | . . . Utility 6 | . 3 3 Device . | . . . Storage 1 | . 1 . Processor 4 | . 2 2 Hackware . | . . . Protection 1 | . . 1 Artifact . | . . . Weapon 9 | 2 6 1 Energy Gun 1 | 1 . . Energy Cannon . | . . . Ballistic Gun 4 | 1 3 . Ballistic Cannon 2 | . 2 . Launcher 2 | . 1 1 Special Weapon . | . . . Impact Weapon . | . . . Slashing Weapon . | . . . Piercing Weapon . | . . . Special Melee Weapon . | . . . Unidentified Prototypes . | . . . Parts Lost 9 | . . 9 Power 2 | . . 2 Propulsion 2 | . . 2 Utility 2 | . . 2 Weapon 3 | . . 3 Highest Loss Streak 8 | . . 8 To Critical Strikes . | . . . Average Slot Usage (%) 93 | . 97 88 Engine 6 | . 8 3 Core 5 | . 5 6 Wheel 23 | . 28 18 Storage 7 | . 4 11 Processor 22 | . 21 24 Protection 2 | . . 6 Ballistic Gun 3 | . 6 . Ballistic Cannon 18 | . 19 18 Launcher 1 | . 2 . Peak Build Rating 23 | 5 15 23 Average Rating 13 | 3 12 19 On Entrance 6 | . 5 14 Naked Turns . | . . . Heaviest Build 100 | 7 93 100 Greatest Support 24 | 20 24 24 Greatest Overweight (x) 26 | . 3 26 Average Overweight (x) 1 | . . 3 Largest Inventory Capacity 25 | 5 25 25 Average Capacity 15 | 5 11 25 Most Carried 14 | 5 5 14 Average Carried 6 | 2 4 11 Final Capacity 25 | 5 25 25 Final Carried 12 | 5 5 12 Class Distribution -------------------- 100% | Mutant Dominant Class ---------------- Mutant | -10/Materials Mutant | -9/Materials Resources | -11 -10 -9 ----------- Run | Yrd Mat Mat Matter Collected 885 | 263 527 95 Remotely . | . . . Salvage Created 476 | 32 284 160 Parts 39 | 2 21 16 Haulers Intercepted . | . . . Recyclers Shooed . | . . . Parts Field Recycled . | . . . Retrieved Matter . | . . . Parts Self-Destructed . | . . . Prevented . | . . . Kills | -11 -10 -9 ------- Run | Yrd Mat Mat Combat Hostiles Destroyed 15 | 1 7 7 Guns 1 | 1 . . Cannons 11 | . 5 6 AOE 3 | . 2 1 Classes Destroyed 7 | 1 4 2 Worker 3 | . 2 1 Builder 2 | . . 2 Recycler 2 | . 2 . Watcher 2 | . 2 . Swarmer 7 | . 3 4 Grunt 7 | 1 4 2 Sentry 1 | . . 1 Best Kill Streak 5 | 1 4 5 Combat Bots Only 5 | 1 3 5 Max Kills in Single Turn 2 | 1 2 2 Gunslinging . | . . . Exploded 1 | . 1 1 Melee . | . . . Uniques/NPCs Destroyed . | . . . Combat | -11 -10 -9 -------- Run | Yrd Mat Mat Hostile Shots Fired 180 | 3 41 136 Missed 57 | 1 9 47 Damage Taken 1611 | 21 305 1285 Core 523 | . 113 410 Absorbed by Shields . | . . . Core Remaining (%) 77 | 100 54 . Volleys Fired 55 | 3 28 24 Largest 2 | 2 2 2 Hottest 78 | 60 78 78 Shots Fired 93 | 6 56 31 Gun 10 | 6 4 . Cannon 73 | . 48 25 Launcher 10 | . 4 6 Special . | . . . Kinetic 80 | 3 52 25 Thermal 3 | 3 . . Explosive 10 | . 4 6 Electromagnetic . | . . . Robot Hit Streak 5 | 5 5 5 Robot Miss Streak 5 | . 5 3 Penetration Max . | . . . Secondary Targets . | . . . Shots Hit Robots 50 | 5 27 18 Core Hits 31 | 2 17 12 Critical Kills . | . . . Critical Parts Destroyed . | . . . Critical Strikes 5 | . 3 2 Blast 5 | . 3 2 Melee Attacks . | . . . Impact . | . . . Slashing . | . . . Piercing . | . . . Sneak Attacks . | . . . Combat Hostiles . | . . . Follow-up Attacks . | . . . Damage Inflicted 1386 | 45 766 575 Guns 76 | 45 31 . Cannons 818 | . 519 299 Explosions 492 | . 216 276 Melee . | . . . Ramming . | . . . Kinetic 861 | 12 550 299 Thermal 94 | 33 . 61 Explosive 431 | . 216 215 Electromagnetic . | . . . Impact . | . . . Slashing . | . . . Piercing . | . . . Highest Corruption . | . . . Average Corruption . | . . . Corruption Purged . | . . . Corruption Blocked . | . . . Overload Shots . | . . . Overflow Damage 67 | . . 67 Projectiles 1 | . . 1 Explosions 66 | . . 66 Melee . | . . . Knockbacks 4 | . 3 1 Impact . | . . . Kinetic 4 | . 3 1 Secondary . | . . . Self-Inflicted Damage 201 | . . 201 Shots 7 | . . 7 Rammed . | . . . Targets Rammed . | . . . Kicked . | . . . Crushed . | . . . Highest Temperature 144 | 52 144 93 Average Temperature 46 | 31 50 39 Received Heat Transfer 342 | 12 69 261 Siege Activations . | . . . Robots Corrupted . | . . . Combat Hostiles . | . . . Parts Fried . | . . . Impact Corruptions . | . . . Robots Melted . | . . . Combat Hostiles . | . . . Parts Melted . | . . . Heat Transferred 125 | 75 . 50 Parts Sabotaged . | . . . Parts Stolen . | . . . Parts Stripped . | . . . Power Chain Reactions . | . . . Alert | -11 -10 -9 ------- Run | Yrd Mat Mat Peak Influence 264 | 20 264 237 Initial 26 | . 13 26 Average 93 | 3 128 83 Maximum Alert Level 1 | . 1 1 Low Security (%) 86 | 100 79 89 Level 1 13 | . 20 10 Level 2 . | . . . Level 3 . | . . . Level 4 . | . . . Level 5 . | . . . High Security . | . . . Max Security . | . . . Squads Dispatched 1 | . . 1 Investigation . | . . . Extermination . | . . . Reinforcement 1 | . . 1 Assault . | . . . Garrison . | . . . Intercept . | . . . Searches Triggered . | . . . Construction Impeded 1 | . . 1 Haulers Reinforced . | . . . Active Scanning Responses . | . . . Cargo Convoy Interrupts . | . . . Stealth | -11 -10 -9 --------- Run | Yrd Mat Mat Distress Signals 1 | . 1 . Communications Jammed . | . . . Distress Signals . | . . . Times Spotted 24 | 1 8 15 Peak Tracking Total 8 | 1 4 8 Tactical Retreats . | . . . Traps | -11 -10 -9 ------- Run | Yrd Mat Mat Traps Triggered . | . . . Indirectly . | . . . Trap Hack Attempts . | . . . Triggered . | . . . Disarmed . | . . . Reprogrammed . | . . . Reused . | . . . Traps Extracted . | . . . Installed . | . . . Triggered . | . . . Machines | -11 -10 -9 ---------- Run | Yrd Mat Mat Machines Disabled 5 | . 1 4 Max in Single Turn 2 | . 1 2 Machines Repaired . | . . . Machines Dismantled . | . . . Machines Sabotaged . | . . . Overloaded Fab Kills . | . . . Hacking | -11 -10 -9 --------- Run | Yrd Mat Mat Machines Accessed 2 | . 1 1 Terminals 2 | . 1 1 Fabricators . | . . . Repair Stations . | . . . Recycling Units . | . . . Scanalyzers . | . . . Garrison Access . | . . . Total Hacks 4 | . 3 1 Successful 3 | . 2 1 Failed 1 | . 1 . Catastrophic . | . . . Database Lockouts . | . . . Manual . | . . . Terminals 4 | . 3 1 Fabricators . | . . . Repair Stations . | . . . Recycling Units . | . . . Scanalyzers . | . . . Garrison Access . | . . . Terminal Hacks 3 | . 2 1 Alert Level 1 | . 1 . Dispatch Records 1 | . . 1 Maintenance Status 1 | . 1 . Fabricator Hacks . | . . . Repair Station Hacks . | . . . Recycling Unit Hacks . | . . . Scanalyzer . | . . . Garrison Access Hacks . | . . . Unauthorized Hacks . | . . . Terminals . | . . . Fabricators . | . . . Repair Stations . | . . . Recycling Units . | . . . Scanalyzers . | . . . Garrison Access . | . . . Data Cores Recovered . | . . . Used . | . . . Hacking Detections . | . . . Full Trace Events . | . . . Feedback Events . | . . . Feedback Blocked . | . . . Robot Schematics Acquired . | . . . Robots Built . | . . . Authchips . | . . . Time . | . . . Total Robot Build Rating . | . . . Part Schematics Acquired . | . . . Parts Built . | . . . Authchips . | . . . Time . | . . . Total Part Build Rating . | . . . Parts Repaired . | . . . Time . | . . . Parts Recycled . | . . . Recycled Matter . | . . . Retrieved Matter . | . . . Retrieved Components . | . . . Parts Scanalyzed . | . . . Part Schematics Acquired . | . . . Parts Damaged . | . . . Bothacking | -11 -10 -9 ------------ Run | Yrd Mat Mat Used RIF Installer . | . . . Robots Hacked . | . . . Non-combat . | . . . Combat . | . . . Robot Hacks Applied . | . . . Relay Couplers Released . | . . . Fabnet Peak Effective % . | . . . Robots Rewired . | . . . Allies Hacked . | . . . Hacks Repelled . | . . . Allies | -11 -10 -9 -------- Run | Yrd Mat Mat Total Allies . | . . . Largest Group . | . . . Highest-Rated Group . | . . . Highest-Rated Ally . | . . . Total Orders . | . . . Ally Attacks . | . . . Total Damage . | . . . Kills . | . . . Allies Corrupted . | . . . Allies Melted . | . . . Intel | -11 -10 -9 ------- Run | Yrd Mat Mat Robot Analysis Total . | . . . Derelict Logs Recovered . | . . . Drone Launches . | . . . Drone Recoveries . | . . . Exploration | -11 -10 -9 ------------- Run | Yrd Mat Mat Turns Passed 841 | 126 411 304 Spaces Moved 584 | 132 304 148 Core 38 | 36 . 2 Treads . | . . . Legs 9 | 9 . . Wheels 537 | 87 304 146 Hover . | . . . Flight . | . . . Fastest Speed 50 | 50 80 135 Average Speed 108 | 74 97 159 Slowest Speed 1350 | 120 135 1350 Overloaded Moves . | . . . Propulsion Burnouts . | . . . Robots Hopped . | . . . Cave-ins Triggered . | . . . Exploration Rate (%) 20 | 6 36 18 Regions Visited 2 Branch Regions . Pre-discovered Areas . | . . . Known Exits Taken . | . . . Unknown Exits Taken 2 | 1 1 . Scrap Searched . | . . . Spaces Dug . | . . . Terrain Destroyed 50 | . 23 27 Melee . | . . . Projectile 2 | . 2 . AOE 48 | . 21 27 Terrain Rammed . | . . . Walls Destroyed . | . . . Machines Disabled . | . . . Actions | -11 -10 -9 --------- Run | Yrd Mat Mat Total 701 | 149 365 187 Wait . | . . . Move 582 | 131 303 148 Hop . | . . . Pick Up 24 | 5 9 10 Fast Attach 8 | 4 2 2 Attach 4 | 1 1 2 Detach 1 | . 1 . Swap 15 | 5 9 1 Drop 12 | . 12 . Fire 55 | 3 28 24 Melee . | . . . Ram . | . . . Kick . | . . . Crush . | . . . Escape Stasis . | . . . Rewire . | . . . Trap . | . . . Miscellaneous . | . . . Route ------- -11/Scrapyard -10/Materials -9/Materials History --------- Turn | Location | Event 2 | -11/Scrapyard | Met Revision 17 97 | -11/Scrapyard | Discovered new exit (range 8) 127 | -11/Scrapyard | Entered Materials 309 | -10/Materials | Build established: Mutant 468 | -10/Materials | Discovered new exit (range 16) 538 | -10/Materials | Entered another Materials area 538 | -9/Materials | Evolved 2 slots: Utility x2 822 | -9/Materials | Core integrity fell below 50% 841 | -9/Materials | Core integrity fell below 20% 842 | -9/Materials | Destroyed by L-31 Rogue with Katana Last Messages --------------- Adv. Targeting Computer destroyed. U-05 Engineer lays Concrete. L-31 Rogue suffers critical hit (Burn). K-01 Serf collects debris. U-05 Engineer lays Concrete. U-05 Engineer builds a Door. U-05 Engineer lays Concrete. Adv. Targeting Computer severed. U-05 Engineer lays Concrete. K-01 Serf cleans the Terminal. U-05 Engineer builds a Wall. K-01 Serf collects debris. U-05 Engineer builds a Wall. K-01 Serf collects debris. U-05 Engineer lays Concrete. K-01 Serf collects debris. U-05 Engineer builds a Wall. M-13 Machinist repairs Y-45 Defender. K-01 Serf collects debris. [Achievement: First Step to Greatness] Map ----- +----------------------------------------------------+ | ?????????????????????????????????????????????????? | | ?????????????????????????????????????????????????? | | ?????????????????????????????????????????????????? | | ?????????????????????????????????????????????????? | | ?????????????????????????????????????????????????? | | ?????????????????????????????????????????????????? | | ?????????????????????????????????????????????????? | | ?????????????????????????????????????????????????? | | ?????????????????????????????????????????????????? | | ?????????????????????????????????????????????????? | | ?????????????????????????????????????????????????? | | ?????????????????????????????????????????????????? | | ?????????????????????????????????????????????????? | | ???????????"? "??????????????????????????????????? | | ????????# "" """?##+###+###?????????????????????? | | ????????# """ # ########??????????????? | | ????????# !! # ???????????????? | | ????????# !! + #?????????????????????? | | ????????# # ######?????????????????????? | | ?????????????????## ##???##???#######??????????? | | ??????????######## ########## #??????????? | | ?????? ###### ?? | | ?????? T [ = T ?? | | ?????? mu = ## ### # | | ??????? ##+####### !!* Y###### #??????????? | | ???????????????#####/# [ @lg #?## ##??????????? | | ???????????????# kk== #??# #???????????? | | ???????????????# %k #??# #???????????? | | ???????????????# " ##??# #???????????? | | ???????????????# " #??## ##??????????? | | ???????????????# " #??# #??????????? | | ???????????????# #??# #??????????? | | ???????????????####;;;;########## +??????????? | | ???????????????? % #??????????? | | ????????????????##########^^ #??????????? | | ?????????????????????????#^^""" #??????????? | | ?????????????????????????# """ ##?????????? | | ?????????????????????????# """ ??? | | ?????????????????????????# ##+###### ??? | | ?????????????????????????# #???????????????? | | ?????????????????????????+ #???????????????? | | ?????????????????????????# ##### #???????????????? | | ?????????????????????????# ????# #???????????????? | | ?????????????????????????#?????# #???????????????? | | ?????????????????????????????###+#####???????????? | | ?????????????????????????????# ! #???????????? | | ?????????????????????????????# #???????????? | | ?????????????????????????????# #???????????? | | ?????????????????????????????# *#???????????? | | ?????????????????????????????# **#???????????? | +----------------------------------------------------+ Best States ------------- Heat Dissipation 28 Energy Generation 14 Energy Capacity 250 Matter Stores 300 Matter Capacity 300 Sight Range 16 Terrain Scan Density 10 Armor Coverage 225 Evasion (%) 50 Targeting Accuracy 16 Salvage Targeting 2 Item Schematics ----------------- None Robot Schematics ------------------ None Fabricated ------------ Nothing Alien Tech Used ----------------- None Achievements -------------- First Step to Greatness Storm Trooper Challenges ------------ None Game ------ Seed PlatingElectronFragment Manual? 0 Play Time 00:52:31 Cumulative 0.8 hours Start 2024.12.03 @ 04:25:57 End 2024.12.04 @ 01:55:11 Sessions 3 Manual Loads 0 Difficulty Rogue Special Mode None Game No. 1 Rogue 1 Adventurer 0 Explorer 0 Win Type - Total 0 Types 0/0/0/0/0/0/0/0/0 Lore% 0 Gallery% 1 Achievement% 0 Wizard Run 0 Options --------- Layout 1 ASCII 0 Keyboard 1 Movement Vi Keybinds 0 Fullscreen 1 Font 24/Terminus Map View 50x40 Zoom Use 5% Tactical HUD 0 Map Filters NONE Filters NONE Steam 1 RUN: 8a378f2c-c9da-4f62-a48c-fe3bd8732c75